Cogmind - Beta 14 @@@ ROGUE MODE // 2024.11.11 @ 03:12:51 Player: UberDoot Result: Destroyed by S-10 Pest with Light Assault Rifle Performance ------------- Evolutions (0) 0 Regions Visited (3) 600 Robots Destroyed (34) 170 Value Destroyed (942) 942 Prototype IDs (5) 100 Alien Tech Used (0) 0 Bonus (0) 0 TOTAL SCORE: 1812 Bonus ------- None Cogmind --------- Core Integrity 0/250 Matter 300/300 Energy 100/100 System Corruption 0% Temperature Cool (0) Movement Treading (260) Ox1 Location -9/Recycling Parts ------- > --- POWER (1) -------- Subdweller Power Source > --- PROPULSION (2) --- Spiked Treads Spiked Treads > --- UTILITY (2) ------ High-capacity Storage Unit Makeshift Light Armor Plating > --- WEAPON (2) ------- Shotgun Barrage Gun > --- INVENTORY (20) --- Subdweller Power Source Spiked Treads Wheel Subdweller Monowheel Heat Sink Huge Storage Unit Large Matter Pod (150) Sensor Array Signal Interpreter Improved Terrain Scanner Seismic Detector Improved Targeting Computer Light Armor Plating Subdweller Machine Gun Battle Cannon Slug Cannon Rocket Launcher Subdweller Shrapnel Launcher Multitool Hammer Peak State ------------ > --- POWER ------------ Subdweller Power Source > --- PROPULSION ------- Spiked Treads Spiked Treads > --- UTILITY ---------- High-capacity Storage Unit Makeshift Light Armor Plating > --- WEAPON ----------- Shotgun Barrage Gun > --- INVENTORY -------- Subdweller Power Source Spiked Treads Wheel Subdweller Monowheel Heat Sink Huge Storage Unit Large Matter Pod Sensor Array Signal Interpreter Improved Terrain Scanner Improved Targeting Computer Light Armor Plating Subdweller Machine Gun Subdweller Machine Gun Battle Cannon Slug Cannon Rocket Launcher Subdweller Shrapnel Launcher Multitool Hammer [Rating: 19] Favorites ----------- Power Improved Ion Engine Engine Improved Ion Engine Propulsion Light Treads Treads Light Treads Wheel Wheel Utility High-capacity Storage Unit Device Improved Terrain Scanner Storage High-capacity Storage Unit Protection Makeshift Light Armor Plating Weapon Shotgun Energy Gun Medium Laser Energy Cannon Beam Cannon Ballistic Gun Shotgun Ballistic Cannon Battle Cannon Launcher Rocket Launcher Special Weapon Mining Laser Impact Weapon Hammer Build | -11 -10 -10 -9 ------- Run | Yrd Mat Sub Rec Slots Evolved . | . . . . Power . | . . . . Propulsion . | . . . . Utility . | . . . . Weapon . | . . . . Parts Attached 57 | 7 16 34 . Power 7 | 1 2 4 . Engine 7 | 1 2 4 . Core . | . . . . Reactor . | . . . . Propulsion 7 | 2 1 4 . Treads 5 | 2 . 3 . Leg . | . . . . Wheel 2 | . 1 1 . Hover . | . . . . Flight . | . . . . Utility 12 | 2 4 6 . Device 3 | 1 . 2 . Storage 5 | 1 4 . . Processor . | . . . . Hackware . | . . . . Protection 4 | . . 4 . Artifact . | . . . . Weapon 31 | 2 9 20 . Energy Gun 1 | 1 . . . Energy Cannon 6 | . 2 4 . Ballistic Gun 11 | 1 3 7 . Ballistic Cannon 1 | . . 1 . Launcher 6 | . 1 5 . Special Weapon 1 | . 1 . . Impact Weapon 5 | . 2 3 . Slashing Weapon . | . . . . Piercing Weapon . | . . . . Special Melee Weapon . | . . . . Unidentified Prototypes . | . . . . Parts Lost 5 | . . 5 . Power 2 | . . 2 . Propulsion 2 | . . 2 . Utility 1 | . . 1 . Weapon . | . . . . Highest Loss Streak 2 | . . 2 . To Critical Strikes . | . . . . Average Slot Usage (%) 99 | . 99 99 100 Engine 14 | . 14 14 14 Treads 23 | . 23 23 28 Wheel 4 | . 4 4 . Device 7 | . 14 6 . Storage 14 | . 14 14 14 Protection 6 | . . 7 14 Energy Cannon 9 | . 10 11 . Ballistic Gun 15 | . 12 14 28 Impact Weapon 1 | . . 2 . Peak Build Rating 19 | 9 13 19 19 Average Rating 14 | 5 11 14 19 On Entrance 10 | . 9 13 19 Naked Turns . | . . . . Heaviest Build 93 | 15 93 62 55 Greatest Support 40 | 40 40 40 40 Greatest Overweight (x) 6 | . 5 6 1 Average Overweight (x) 2 | . 1 3 1 Largest Inventory Capacity 25 | 8 25 20 20 Average Capacity 18 | 7 16 20 20 Most Carried 20 | 8 20 20 20 Average Carried 18 | 4 15 19 19 Final Capacity 20 | 8 20 20 20 Final Carried 20 | 7 20 20 20 Class Distribution -------------------- 86% | Mutant 13% | Derelict-Mutant Dominant Class ---------------- Mutant | -10/Materials Mutant | -10/Subcaves Derelict-Mutant | -9/Recycling Resources | -11 -10 -10 -9 ----------- Run | Yrd Mat Sub Rec Matter Collected 1368 | 278 255 759 76 Remotely . | . . . . Salvage Created 880 | 41 272 470 97 Parts 67 | 6 25 33 3 Haulers Intercepted . | . . . . Recyclers Shooed 1 | 1 . . . Parts Field Recycled . | . . . . Retrieved Matter . | . . . . Parts Self-Destructed 19 | . . 19 . Prevented . | . . . . Kills | -11 -10 -10 -9 ------- Run | Yrd Mat Sub Rec Combat Hostiles Destroyed 25 | . 9 14 2 Guns 12 | . 5 5 2 Cannons 6 | . 1 5 . AOE 7 | . 3 4 . Classes Destroyed 9 | 1 5 2 1 Worker 1 | . 1 . . Builder 1 | . 1 . . Tunneler 2 | 2 . . . Turret 2 | . . 2 . Watcher 3 | . 3 . . Swarmer 6 | . 6 . . Grunt 4 | . 3 . 1 Sentry 1 | . . . 1 Subdweller 14 | . . 14 . Best Kill Streak 4 | 1 4 2 1 Combat Bots Only 3 | . 3 2 1 Max Kills in Single Turn 3 | 1 3 2 1 Gunslinging . | . . . . Exploded 3 | . 3 2 . Melee . | . . . . Uniques/NPCs Destroyed . | . . . . Combat | -11 -10 -10 -9 -------- Run | Yrd Mat Sub Rec Hostile Shots Fired 155 | . 41 105 9 Missed 54 | . 13 37 4 Damage Taken 1555 | . 250 1259 46 Core 252 | . 25 197 30 Absorbed by Shields . | . . . . Regen/Repaired (Parts) 540 | . 540 . . Core Remaining (%) 100 | 100 . . . Volleys Fired 93 | 4 33 52 4 Largest 2 | 2 2 2 2 Hottest 103 | 70 100 103 51 Shots Fired 172 | 8 64 92 8 Gun 87 | 8 34 37 8 Cannon 69 | . 27 42 . Launcher 14 | . 1 13 . Special 2 | . 2 . . Kinetic 84 | 4 30 42 8 Thermal 75 | 4 33 38 . Explosive 13 | . 1 12 . Electromagnetic . | . . . . Robot Hit Streak 18 | 2 5 18 4 Robot Miss Streak 7 | 2 7 2 1 Penetration Max . | . . . . Secondary Targets . | . . . . Shots Hit Robots 109 | 4 33 66 6 Core Hits 52 | 3 19 27 3 Critical Kills . | . . . . Critical Parts Destroyed . | . . . . Critical Strikes . | . . . . Melee Attacks 24 | . 3 21 . Impact 24 | . 3 21 . Slashing . | . . . . Piercing . | . . . . Sneak Attacks . | . . . . Combat Hostiles . | . . . . Follow-up Attacks . | . . . . Damage Inflicted 2710 | 54 705 1864 87 Guns 926 | 54 283 502 87 Cannons 1015 | . 263 752 . Explosions 769 | . 159 610 . Melee . | . . . . Ramming . | . . . . Kinetic 1077 | 15 270 705 87 Thermal 979 | 39 276 664 . Explosive 654 | . 159 495 . Electromagnetic . | . . . . Impact . | . . . . Slashing . | . . . . Piercing . | . . . . Highest Corruption . | . . . . Average Corruption . | . . . . Corruption Purged . | . . . . Corruption Blocked . | . . . . Overload Shots . | . . . . Overflow Damage 14 | . . 14 . Projectiles . | . . . . Explosions 14 | . . 14 . Melee . | . . . . Knockbacks 2 | . . 2 . Impact . | . . . . Kinetic 2 | . . 2 . Secondary . | . . . . Self-Inflicted Damage 23 | . . 23 . Shots 1 | . . 1 . Rammed . | . . . . Targets Rammed . | . . . . Kicked . | . . . . Crushed . | . . . . Highest Temperature 213 | 18 213 36 20 Average Temperature 35 | 10 42 17 10 Received Heat Transfer 354 | . 60 285 9 Siege Activations . | . . . . Robots Corrupted . | . . . . Combat Hostiles . | . . . . Parts Fried . | . . . . Impact Corruptions . | . . . . Robots Melted . | . . . . Combat Hostiles . | . . . . Parts Melted 7 | 1 1 5 . Heat Transferred 1850 | 111 592 1147 . Parts Sabotaged . | . . . . Parts Stolen . | . . . . Parts Stripped . | . . . . Power Chain Reactions . | . . . . Alert | -11 -10 -10 -9 ------- Run | Yrd Mat Sub Rec Peak Influence 158 | 10 158 . 95 Initial 72 | . 6 . 72 Average 33 | 3 23 . 62 Maximum Alert Level . | . . . . Low Security (%) 100 | 100 100 . 100 Level 1 . | . . . . Level 2 . | . . . . Level 3 . | . . . . Level 4 . | . . . . Level 5 . | . . . . High Security . | . . . . Max Security . | . . . . Squads Dispatched 1 | . 1 . . Investigation . | . . . . Extermination . | . . . . Reinforcement 1 | . 1 . . Assault . | . . . . Garrison . | . . . . Intercept . | . . . . Searches Triggered . | . . . . Construction Impeded . | . . . . Haulers Reinforced . | . . . . Active Scanning Responses . | . . . . Cargo Convoy Interrupts . | . . . . Stealth | -11 -10 -10 -9 --------- Run | Yrd Mat Sub Rec Distress Signals 1 | . 1 . . Communications Jammed . | . . . . Distress Signals . | . . . . Times Spotted 48 | . 21 21 6 Peak Tracking Total 4 | . 4 3 3 Tactical Retreats 5 | . 1 2 2 Traps | -11 -10 -10 -9 ------- Run | Yrd Mat Sub Rec Traps Triggered . | . . . . Indirectly . | . . . . Trap Hack Attempts . | . . . . Triggered . | . . . . Disarmed . | . . . . Reprogrammed 4 | . 4 . . Reused . | . . . . Traps Extracted . | . . . . Installed . | . . . . Triggered . | . . . . Machines | -11 -10 -10 -9 ---------- Run | Yrd Mat Sub Rec Machines Disabled 2 | . . 2 . Max in Single Turn 1 | . . 1 . Machines Repaired . | . . . . Machines Dismantled . | . . . . Machines Sabotaged . | . . . . Overloaded Fab Kills . | . . . . Hacking | -11 -10 -10 -9 --------- Run | Yrd Mat Sub Rec Machines Accessed 16 | . 10 1 5 Terminals 10 | . 7 . 3 Fabricators . | . . . . Repair Stations 1 | . 1 . . Recycling Units 4 | . 2 . 2 Scanalyzers . | . . . . Garrison Access . | . . . . Total Hacks 52 | . 39 3 10 Successful 27 | . 18 3 6 Failed 24 | . 20 . 4 Catastrophic 2 | . 2 . . Database Lockouts 1 | . 1 . . Manual 26 | . 19 . 7 Terminals 39 | . 31 . 8 Fabricators . | . . . . Repair Stations 4 | . 4 . . Recycling Units 6 | . 4 . 2 Scanalyzers . | . . . . Garrison Access . | . . . . Terminal Hacks 14 | . 10 3 1 Record 3 | . . 3 . Part Schematic 1 | . 1 . . Robot Analysis 1 | . 1 . . Prototype ID Bank 3 | . 2 . 1 Branch Access Points 2 | . 2 . . Locate Traps 1 | . 1 . . Reprogram Traps 1 | . 1 . . Hauler Manifests 1 | . 1 . . Zone Layout 1 | . 1 . . Fabricator Hacks . | . . . . Repair Station Hacks 4 | . 4 . . Scan Component 2 | . 2 . . Repair 2 | . 2 . . Recycling Unit Hacks 3 | . 1 . 2 Retrieve Components 3 | . 1 . 2 Scanalyzer . | . . . . Garrison Access Hacks . | . . . . Unauthorized Hacks 6 | . 3 . 3 Terminals 6 | . 3 . 3 Assimilate 1 | . 1 . . Botnet 3 | . 2 . 1 Skim 2 | . . . 2 Fabricators . | . . . . Repair Stations . | . . . . Recycling Units . | . . . . Scanalyzers . | . . . . Garrison Access . | . . . . Data Cores Recovered . | . . . . Used . | . . . . Hacking Detections 12 | . 9 . 3 Full Trace Events . | . . . . Feedback Events . | . . . . Feedback Blocked . | . . . . Robot Schematics Acquired . | . . . . Robots Built . | . . . . Authchips . | . . . . Time . | . . . . Total Robot Build Rating . | . . . . Part Schematics Acquired 1 | . 1 . . Parts Built . | . . . . Authchips . | . . . . Time . | . . . . Total Part Build Rating . | . . . . Parts Repaired 2 | . 2 . . Time 52 | . 52 . . Parts Recycled . | . . . . Recycled Matter . | . . . . Retrieved Matter . | . . . . Retrieved Components 15 | . 10 . 5 Parts Scanalyzed . | . . . . Part Schematics Acquired . | . . . . Parts Damaged . | . . . . Bothacking | -11 -10 -10 -9 ------------ Run | Yrd Mat Sub Rec Used RIF Installer . | . . . . Robots Hacked . | . . . . Non-combat . | . . . . Combat . | . . . . Robot Hacks Applied . | . . . . Relay Couplers Released . | . . . . Fabnet Peak Effective % . | . . . . Robots Rewired 5 | . . . 5 Allies Hacked . | . . . . Hacks Repelled . | . . . . Allies | -11 -10 -10 -9 -------- Run | Yrd Mat Sub Rec Total Allies 6 | . 1 . 5 Largest Group 3 | . 1 1 3 Highest-Rated Group 48 | . 10 10 48 Highest-Rated Ally 18 | . 10 10 18 Total Orders . | . . . . Ally Attacks 2 | . . . 2 Total Damage 16 | . . . 16 Kills 1 | . . . 1 Allies Corrupted . | . . . . Allies Melted . | . . . . Intel | -11 -10 -10 -9 ------- Run | Yrd Mat Sub Rec Robot Analysis Total 1 | . 1 . . Derelict Logs Recovered . | . . . . Drone Launches . | . . . . Drone Recoveries . | . . . . Exploration | -11 -10 -10 -9 ------------- Run | Yrd Mat Sub Rec Turns Passed 6244 | 135 1853 3473 783 Spaces Moved 2569 | 63 738 1489 279 Core 2 | 2 . . . Treads 1693 | 61 513 840 279 Legs . | . . . . Wheels 874 | . 225 649 . Hover . | . . . . Flight . | . . . . Fastest Speed 50 | 50 155 155 260 Average Speed 208 | 156 184 212 260 Slowest Speed 360 | 160 320 360 260 Overloaded Moves . | . . . . Propulsion Burnouts . | . . . . Robots Hopped . | . . . . Cave-ins Triggered . | . . . . Exploration Rate (%) 63 | 6 97 85 66 Regions Visited 3 Branch Regions 2 Pre-discovered Areas . | . . . . Known Exits Taken . | . . . . Unknown Exits Taken 3 | 1 1 1 . Scrap Searched 7 | . . 7 . Spaces Dug 8 | . 4 4 . Terrain Destroyed 78 | . 14 64 . Melee 6 | . 2 4 . Projectile 4 | . 2 2 . AOE 68 | . 10 58 . Terrain Rammed . | . . . . Walls Destroyed . | . . . . Machines Disabled . | . . . . Actions | -11 -10 -10 -9 --------- Run | Yrd Mat Sub Rec Total 3242 | 89 1158 1664 331 Wait 401 | 8 332 40 21 Move 2566 | 62 737 1488 279 Hop . | . . . . Pick Up 47 | 8 23 15 1 Fast Attach 10 | 6 2 2 . Attach 8 | 1 . 7 . Detach 2 | . 1 1 . Swap 39 | . 14 25 . Drop 27 | . 13 13 1 Fire 93 | 4 33 52 4 Melee 24 | . 3 21 . Ram . | . . . . Kick . | . . . . Crush . | . . . . Escape Stasis . | . . . . Rewire 25 | . . . 25 Trap . | . . . . Miscellaneous . | . . . . Route ------- -11/Scrapyard -10/Materials (discovered 5 exits: [*Mat x3] / *Min / *Sub) -10/Subcaves (discovered 3 exits: [*Mat x2] / *Rec) -9/Recycling History --------- Turn | Location | Event 7 | -11/Scrapyard | Discovered new exit (range 15) 136 | -11/Scrapyard | Entered Materials 306 | -10/Materials | Build established: Mutant 450 | -10/Materials | Discovered new exit (range 15) 508 | -10/Materials | Identified exit to Mines 508 | -10/Materials | Central database locked down 1110 | -10/Materials | Discovered new exit (range 9) 1281 | -10/Materials | Discovered new exit (range 11) 1446 | -10/Materials | Repaired Huge Storage Unit 1474 | -10/Materials | Repaired Hcp. Storage Unit 1980 | -10/Materials | Discovered new exit (range 6) 1989 | -10/Materials | Entered Subcaves 1989 | -10/Subcaves | Accompanied by 1 ally 2466 | -10/Subcaves | Discovered new exit (range 6) 3117 | -10/Subcaves | Discovered new exit (range 11) 3130 | -10/Subcaves | Shifting Twisted Machinery released Hvy. Riot Gun 3139 | -10/Subcaves | A swath of the cavern ceiling suddenly collapsed 3177 | -10/Subcaves | Ambushed by Subdwellers from Twisted Machinery 3476 | -10/Subcaves | Core integrity fell below 50% 3689 | -10/Subcaves | Shifting Twisted Machinery released Piercing Trap 3694 | -10/Subcaves | Shifting Twisted Machinery released Spk. Treads 3696 | -10/Subcaves | Shifting Twisted Machinery released Battle Rifle 3833 | -10/Subcaves | Visited Clippyterm 3840 | -10/Subcaves | Learned Factory fabricator intel 4018 | -10/Subcaves | A swath of the cavern ceiling suddenly collapsed 4139 | -10/Subcaves | A Subdweller sparked back to life 4139 | -10/Subcaves | A Subdweller sparked back to life 4154 | -10/Subcaves | Disturbed a concealed Subdweller 5060 | -10/Subcaves | Shifting Twisted Machinery released Battle Rifle 5388 | -10/Subcaves | Discovered new exit (range 12) 5401 | -10/Subcaves | Core integrity fell below 20% 5462 | -10/Subcaves | Entered Recycling 5716 | -9/Recycling | Build established: Derelict-Mutant 6245 | -9/Recycling | Destroyed by S-10 Pest with Light Assault Rifle Last Messages --------------- 05995_ Attempting to rewire L-31 Rogue. 06024_ L-31 Rogue rewired. 06030_ Attempting to rewire Y-45 Defender. 06033_ Y-45 Defender rewired. 06042_ Attempting to rewire Y-45 Defender. 06042_ Y-45 Defender rewired. 06048_ Attempting to rewire B-36 Bruiser. 06051_ B-36 Bruiser rewired. 06052_ Rogue 2a destroyed. 06052_ Defender 2b destroyed. 06057_ G-34 Mercenary destroyed. 06063_ R-06 Scavenger collects Imp. Ion Engine. 06067_ R-06 Scavenger collects Beam Rifle. 06068_ Attempting to rewire L-31 Rogue. 06069_ L-31 Rogue rewired. 06070_ R-06 Scavenger collects Lgt. Armor Plating. 06070_ U-05 Engineer builds a Wall. 06081_ Acquired 16 matter. [Achievement: Back For More] Map ----- +----------------------------------------------------+ | #???????????# #??????????????????????? | | ! !! #???????????# #??????????????????????? | | ! #???????????# #########??????????????? | | ! #???????????# ## ??????????????? | | ! #???????????# ## ??????????????? | | ! ! #???????????# ## """ #????????????? | | #???????????# ## """ #????????????? | | #######???????????# ## """ #????????????? | | ??????????????????# ## #????????????? | | ?????????????????## ## """ #????????????? | | ?????????????????# # """ #????????????? | | ?????????????????# # """ #????????????? | | ?????????????????# + #????????????? | | ?????????????????# # """ #????????????? | | ?????????????????# # """ #????????????? | | #######??????????## ## """ #????????????? | | #???????????# ## #????????????? | | ! #?########### ## """ #????????????? | | #?# # ## """ #????????????? | | #?# """ """ # ## """ #????????????? | | [ = #?# """ """ + ## #????????????? | | /!### """ """ # ###/#######????????????? | | ! [ +%+ # #?#b#??????????????????? | | % % ### # #?#l#??????????????????? | | ! #?# # #?#Y#??????????????????? | | ] #?# # #?#@#??????????????????? | | #?########### #?# #####??????????????? | | ] #???????????# #?# +??????????????? | | /! [ #??#####????# ###s ###??????????????? | | #####/####"T"###### #????????????????? | | #????????????????? | | ######## #????????????????? | | # #????????????????? | | !# """ """ """ #????????????????? | | # """ """ """ #????????????????? | | % # """ """ """ #????????????????? | | # """ """ ??"" #????????????????? | | + #????????????????? | | ! # #????????????????? | | #####+##### #????????????????? | | ! #??????????????###+#+#????????????????? | | #?????????????????????????????????????? | | ! [ #?????????????????????????????????????? | | #?????????????????????????????????????? | | ########?????????????????????????????????????? | | ?????????????????????????????????????????????? | | ?????????????????????????????????????????????? | | ?????????????????????????????????????????????? | | ?????????????????????????????????????????????? | | ?????????????????????????????????????????????? | +----------------------------------------------------+ Best States ------------- Heat Dissipation 25 Energy Generation 15 Energy Capacity 265 Matter Stores 300 Matter Capacity 300 Sight Range 16 Terrain Scan Range 16 Terrain Scan Density 10 Armor Coverage 150 Evasion (%) 40 Recoil Reduction 2 Item Schematics ----------------- Hcp. Storage Unit | -10/Materials | Hacked Robot Schematics ------------------ None Fabricated ------------ Nothing Alien Tech Used ----------------- None Achievements -------------- Back For More Challenges ------------ None Game ------ Seed MasterClaymoresClaw Manual? 0 Play Time 00:33:02 Cumulative 79.2 hours Start 2024.11.11 @ 02:42:52 End 2024.11.11 @ 03:12:51 Sessions 1 Manual Loads 0 Difficulty Rogue Special Mode None Game No. 51 Rogue 51 Adventurer 0 Explorer 0 Win Type - Total 1 Types 1/0/0/0/0/0/0/0/0 Lore% 37 Gallery% 55 Achievement% 43 Wizard Run 0 Options --------- Layout 2 ASCII 0 Keyboard 1 Movement Numpad Keybinds 0 Fullscreen 2 Font 24/Terminus Map View 50x49 Zoom Use 0% Tactical HUD 1 Map Filters NONE Filters NONE Steam 1 RUN: 1b59bad5-2cc1-4bff-aaf9-8fa4ae331fe5